[Event "75th Argentine Women-ch 2024"]
[Site "Buenos Aires"]
[Date "2024.11.29"]
[Round "8.1"]
[White "Perez Lascano, Lucila"]
[Black "Adam, Ernestina"]
[Result "0-1"]
[ECO "B67"]
[WhiteElo "1593"]
[BlackElo "2154"]
[Annotator "RC"]
[PlyCount "78"]
[EventDate "2024.11.21"]
[EventType "swiss"]
[EventCountry "ARG"]
[SourceTitle "playchess.com"]
[Source "ChessBase"]
[SourceQuality "1"]
[TimeControl "5400+30"]

1. e4 {[%emt 0:00:04]} c5 {[%emt 0:00:11]} 2. Nf3 {[%emt 0:00:12]} d6 {[%emt 0:00:08]} 3. d4 {[%emt 0:00:08]} cxd4 {[%emt 0:00:08]} 4. Nxd4 {[%emt 0:00:05]} Nf6 {[%emt 0:00:08]} 5. Nc3 {[%emt 0:00:18]} Nc6 {[%emt 0:00:06]} 6. Bg5 {[%emt 0:00:39]} e6 {[%emt 0:00:28]} 7. Qd2 {[%emt 0:00:51]} a6 {[%emt 0:00:23]} 8. O-O-O {[%emt 0:00:38]} Bd7 {[%emt 0:00:51]} 9. f3 {[%emt 0:00:51]} Nxd4 {[%emt 0:00:28]} 10. Qxd4 {[%emt 0:00:10]} Be7 {[%emt 0:00:38]} 11. Kb1 {[%emt 0:02:19]} Qc7 {[%emt 0:00:49]} 12. h4 {[%emt 0:05:07]} b5 {[%emt 0:02:48]} 13. g4 {[%emt 0:02:14]} O-O {[%emt 0:01:52]} 14. Be3 {[%emt 1:23:54]} Rfc8 {[%emt 1:28:32]} 15. Qd2 {[%emt 0:00:00]} b4 {[%emt 0:00:00]} 16. Ne2 {[%emt 0:01:00]} Bb5 {[%emt 0:01:00]} 17. h5 {[%emt 0:00:00]} Nd7 {[%emt 0:00:00]} 18. Nd4 {[%emt 0:00:00]} Ne5 {[%emt 0:00:00]} 19. g5 {[%emt 0:00:00]} Bxf1 {[%emt 0:00:00]} 20. Rdxf1 {[%emt 0:00:00]} Nc4 {[%emt 0:00:00]} 21. Qc1 {[%emt 0:00:00]} Nxe3 {[%emt 0:00:00]} 22. Qxe3 {[%emt 0:00:00]} Qc5 {[%emt 0:00:00]} 23. Rh2 {[%emt 0:00:00]} Bxg5 {[%emt 0:00:00]} 24. f4 {[%emt 0:00:00]} Bf6 {[%emt 0:00:00]} 25. Rd1 {[%emt 0:00:00]} a5 {[%emt 0:00:00]} 26. Qd3 {[%emt 0:00:00]} Bxd4 {[%emt 0:00:00]} 27. Qxd4 {[%emt 0:00:00]} Qxd4 {[%emt 0:00:00]} 28. Rxd4 {[%emt 0:00:00]} Rc6 {[%emt 0:00:00]} 29. Rhd2 {[%emt 0:00:00]} Raa6 {[%emt 0:00:00]} 30. Kc1 {[%emt 0:00:00]} Kf8 {[%emt 0:00:00]} 31. Kd1 {[%emt 0:00:00]} Ke7 {[%emt 0:00:00]} 32. e5 {[%emt 0:00:00]} d5 {[%emt 0:00:00]} 33. Rg2 {[%emt 0:00:00]} g6 {[%emt 0:00:00]} 34. h6 {[%emt 0:00:00]} Rc5 {[%emt 0:00:00]} 35. Kd2 {[%emt 0:00:00]} Rac6 {[%emt 0:00:00]} 36. Kd3 {[%emt 0:00:00]} Rc4 {[%emt 0:00:00]} 37. Rf2 {[%emt 0:01:26]} f6 {[%emt 0:00:00]} 38. Rg2 {[%emt 0:02:31]} Rxd4+ {[%emt 0:00:00]} 39. Kxd4 {[%emt 0:00:09]} Rc4+ {[%emt 0:00:00]} 0-1

[Event "75th Argentine Women-ch 2024"]
[Site "Buenos Aires"]
[Date "2024.11.29"]
[Round "8.2"]
[White "Campos, Maria Jose"]
[Black "Bosco, Giuliana"]
[Result "1-0"]
[ECO "A25"]
[WhiteElo "2272"]
[BlackElo "1953"]
[Annotator "RC"]
[PlyCount "71"]
[EventDate "2024.11.21"]
[EventType "swiss"]
[EventCountry "ARG"]
[SourceTitle "playchess.com"]
[Source "ChessBase"]
[SourceQuality "1"]
[TimeControl "5400+30"]

1. Nf3 {[%emt 0:01:24]} g6 {[%emt 0:00:53]} 2. c4 {[%emt 0:00:26]} Bg7 {[%emt 0:00:32]} 3. g3 {[%emt 0:00:43]} e5 {[%emt 0:00:31]} 4. Nc3 {[%emt 0:00:34]} Nc6 {[%emt 0:00:34]} 5. Bg2 {[%emt 0:00:30]} d6 {[%emt 0:02:22]} 6. Rb1 {[%emt 0:01:38]} Bf5 {[%emt 0:04:55]} 7. d3 {[%emt 0:02:18]} Qd7 {[%emt 0:02:47]} 8. h3 {[%emt 0:00:53]} h5 {[%emt 0:04:05]} 9. e4 {[%emt 0:07:19]} Be6 {[%emt 0:00:23]} 10. Nd5 {[%emt 0:00:17]} Nd8 {[%emt 0:04:24]} 11. b4 {[%emt 0:03:34]} c6 {[%emt 0:02:33]} 12. Ne3 {[%emt 0:01:56]} Ne7 {[%emt 1:12:31]} 13. d4 {[%emt 0:07:58]} f5 {[%emt 0:00:00]} 14. d5 {[%emt 0:04:58]} Bf7 {[%emt 0:00:00]} 15. Bb2 {[%emt 0:02:17]} O-O {[%emt 0:00:00]} 16. O-O {[%emt 0:07:58]} Be8 {[%emt 0:00:00]} 17. exf5 {[%emt 0:03:00]} gxf5 {[%emt 0:00:00]} 18. dxc6 {[%emt 0:03:52]} bxc6 {[%emt 0:00:00]} 19. c5 {[%emt 0:06:40]} dxc5 {[%emt 0:00:00]} 20. Bxe5 {[%emt 0:06:43]} Qxd1 {[%emt 0:00:00]} 21. Rfxd1 {[%emt 0:00:28]} cxb4 {[%emt 0:00:00]} 22. Bd6 {[%emt 0:01:47]} Bf6 {[%emt 0:00:00]} 23. Rxb4 {[%emt 0:01:23]} Nf7 {[%emt 0:00:00]} 24. Bc5 {[%emt 0:01:15]} Ng5 {[%emt 0:00:00]} 25. Rb7 {[%emt 0:03:21]} Rf7 {[%emt 0:00:00]} 26. Nxg5 {[%emt 0:02:33]} Bxg5 {[%emt 0:00:00]} 27. f4 {[%emt 0:01:27]} Bf6 {[%emt 0:00:00]} 28. Rxa7 {[%emt 0:00:55]} Rxa7 {[%emt 0:00:00]} 29. Bxa7 {[%emt 0:00:07]} Ng6 {[%emt 0:00:00]} 30. Bc5 {[%emt 0:01:01]} Bd7 {[%emt 0:00:00]} 31. h4 {[%emt 0:00:34]} Be6 {[%emt 0:00:00]} 32. a3 {[%emt 0:01:18]} Rg7 {[%emt 0:00:00]} 33. Kf2 {[%emt 0:03:15]} Rb7 {[%emt 0:00:00]} 34. Bb4 {[%emt 0:01:18]} Ne7 {[%emt 0:00:00]} 35. Rd6 {[%emt 0:01:19]} Kf7 {[%emt 0:00:23]} 36. Bf3 {[%emt 0:00:23]} 1-0

[Event "75th Argentine Women-ch 2024"]
[Site "Buenos Aires"]
[Date "2024.11.29"]
[Round "8.3"]
[White "Zuriel, Marisa"]
[Black "Maggiolo, Elisa"]
[Result "1-0"]
[ECO "B34"]
[WhiteElo "2163"]
[BlackElo "1922"]
[Annotator "RC"]
[PlyCount "113"]
[EventDate "2024.11.21"]
[EventType "swiss"]
[EventCountry "ARG"]
[SourceTitle "playchess.com"]
[Source "ChessBase"]
[SourceQuality "1"]
[TimeControl "5400+30"]

1. e4 {[%emt 0:00:55]} c5 {[%emt 0:00:16]} 2. Nc3 {[%emt 0:00:15]} g6 {[%emt 0:00:13]} 3. Nf3 {[%emt 0:01:03]} Bg7 {[%emt 0:00:31]} 4. d4 {[%emt 0:00:08]} cxd4 {[%emt 0:00:11]} 5. Nxd4 {[%emt 0:00:09]} Nc6 {[%emt 0:00:15]} 6. Be3 {[%emt 0:02:28]} Nf6 {[%emt 0:04:54]} 7. Be2 {[%emt 0:02:23]} d5 {[%emt 0:02:11]} 8. exd5 {[%emt 0:17:46]} Nxd5 {[%emt 0:00:56]} 9. Nxd5 {[%emt 0:00:15]} Qxd5 {[%emt 0:00:12]} 10. Bf3 {[%emt 0:00:04]} Qa5+ {[%emt 0:03:10]} 11. c3 {[%emt 0:00:37]} Nxd4 {[%emt 0:03:41]} 12. Bxd4 {[%emt 0:00:06]} e5 {[%emt 0:00:39]} 13. Be3 {[%emt 0:02:48]} O-O {[%emt 0:02:18]} 14. O-O {[%emt 0:00:05]} Be6 {[%emt 0:08:04]} 15. Qc1 {[%emt 0:03:23]} f5 {[%emt 0:33:04]} 16. Bxb7 {[%emt 0:02:36]} Rab8 {[%emt 0:00:13]} 17. Bf3 {[%emt 0:00:13]} Qb5 {[%emt 0:00:47]} 18. Bxa7 {[%emt 0:10:29]} Rbd8 {[%emt 0:12:02]} 19. b4 {[%emt 0:10:37]} e4 {[%emt 0:07:39]} 20. Bd1 {[%emt 0:00:09]} f4 {[%emt 0:00:45]} 21. Bc5 {[%emt 0:01:26]} Rf7 {[%emt 0:03:24]} 22. Bb3 {[%emt 0:17:17]} Bxb3 {[%emt 0:00:21]} 23. axb3 {[%emt 0:00:25]} f3 {[%emt 0:00:07]} 24. Rd1 {[%emt 0:10:41]} Re8 {[%emt 0:01:11]} 25. Qe3 {[%emt 0:02:45]} fxg2 {[%emt 0:02:07]} 26. c4 {[%emt 0:04:44]} Qb8 {[%emt 0:00:40]} 27. Ra7 {[%emt 0:00:36]} Rxa7 {[%emt 0:05:08]} 28. Bxa7 {[%emt 0:00:04]} Qxb4 {[%emt 0:00:25]} 29. Rd7 {[%emt 0:04:52]} Qa5 {[%emt 0:02:47]} 30. Bd4 {[%emt 0:01:13]} Bf8 {[%emt 0:03:21]} 31. Qf4 {[%emt 0:03:11]} Qf5 {[%emt 0:00:41]} 32. Qxf5 {[%emt 0:00:08]} gxf5 {[%emt 0:00:01]} 33. Be3 {[%emt 0:00:47]} Re7 {[%emt 0:03:12]} 34. Rd8 {[%emt 0:02:07]} Rc7 {[%emt 0:00:49]} 35. Bh6 {[%emt 0:00:17]} Rf7 {[%emt 0:00:16]} 36. Kxg2 {[%emt 0:00:33]} f4 {[%emt 0:00:33]} 37. Kf1 {[%emt 0:00:47]} Rf6 {[%emt 0:00:30]} 38. Bxf8 {[%emt 0:00:27]} Rxf8 {[%emt 0:00:01]} 39. Rd4 {[%emt 0:00:30]} e3 {[%emt 0:01:22]} 40. fxe3 {[%emt 0:00:34]} fxe3+ {[%emt 0:00:00]} 41. Ke2 {[%emt 0:00:27]} Rf2+ {[%emt 0:00:09]} 42. Kxe3 {[%emt 0:00:02]} Rxh2 {[%emt 0:00:01]} 43. b4 {[%emt 0:00:09]} Kf7 {[%emt 0:01:07]} 44. Re4 {[%emt 0:00:36]} h5 {[%emt 0:00:56]} 45. b5 {[%emt 0:00:03]} h4 {[%emt 0:00:52]} 46. b6 {[%emt 0:01:22]} h3 {[%emt 0:00:01]} 47. Rh4 {[%emt 0:00:30]} Rb2 {[%emt 0:00:02]} 48. c5 {[%emt 0:00:13]} Ke6 {[%emt 0:00:20]} 49. Rh5 {[%emt 0:00:39]} h2 {[%emt 0:00:55]} 50. Kd4 {[%emt 0:00:13]} Kd7 {[%emt 0:01:18]} 51. Rh6 {[%emt 0:00:12]} Rb4+ {[%emt 0:00:49]} 52. Kd5 {[%emt 0:00:10]} Rb2 {[%emt 0:00:04]} 53. c6+ {[%emt 0:00:14]} Ke7 {[%emt 0:00:24]} 54. Rh7+ {[%emt 0:01:12]} Kf6 {[%emt 0:00:49]} 55. b7 {[%emt 0:00:15]} Rd2+ {[%emt 0:00:42]} 56. Kc5 {[%emt 0:00:07]} Rb2 {[%emt 0:00:21]} 57. Rxh2 {[%emt 0:00:25]} 1-0

[Event "75th Argentine Women-ch 2024"]
[Site "Buenos Aires"]
[Date "2024.11.29"]
[Round "8.4"]
[White "Brizzi, Milagros Tatiana"]
[Black "Amura, Claudia"]
[Result "1-0"]
[ECO "B29"]
[WhiteElo "2114"]
[BlackElo "2183"]
[Annotator "RC"]
[PlyCount "87"]
[EventDate "2024.11.21"]
[EventType "swiss"]
[EventCountry "ARG"]
[SourceTitle "playchess.com"]
[Source "ChessBase"]
[SourceQuality "1"]
[TimeControl "5400+30"]

1. e4 {[%emt 0:00:09]} c5 {[%emt 0:00:10]} 2. Nf3 {[%emt 0:00:16]} Nc6 {[%emt 0:00:04]} 3. d3 {[%emt 0:00:24]} Nf6 {[%emt 0:01:16]} 4. g3 {[%emt 0:02:02]} d5 {[%emt 0:00:40]} 5. exd5 {[%emt 0:03:45]} Nxd5 {[%emt 0:00:08]} 6. Bg2 {[%emt 0:00:24]} e5 {[%emt 0:01:32]} 7. O-O {[%emt 0:00:45]} Be7 {[%emt 0:00:11]} 8. Re1 {[%emt 0:01:50]} f6 {[%emt 0:02:32]} 9. c3 {[%emt 0:02:25]} Bg4 {[%emt 0:11:30]} 10. Nbd2 {[%emt 0:08:04]} Nc7 {[%emt 0:05:07]} 11. Nc4 {[%emt 0:14:01]} Rb8 {[%emt 0:03:06]} 12. a4 {[%emt 0:04:13]} O-O {[%emt 0:01:52]} 13. a5 {[%emt 0:07:52]} Kh8 {[%emt 0:02:38]} 14. Ne3 {[%emt 0:15:02]} Bh5 {[%emt 0:11:19]} 15. Nf5 {[%emt 0:04:39]} Re8 {[%emt 0:06:20]} 16. Nxe7 {[%emt 0:03:02]} Rxe7 {[%emt 0:01:13]} 17. Be3 {[%emt 0:04:32]} Na6 {[%emt 0:06:39]} 18. Qa4 {[%emt 0:05:15]} Qxd3 {[%emt 0:01:49]} 19. Nh4 {[%emt 0:04:22]} Qd7 {[%emt 0:04:17]} 20. Be4 {[%emt 0:02:26]} Bg4 {[%emt 0:03:27]} 21. f3 {[%emt 0:02:44]} Be6 {[%emt 0:02:17]} 22. Red1 {[%emt 0:02:13]} Qc8 {[%emt 0:07:29]} 23. Rd6 {[%emt 0:02:52]} Nd8 {[%emt 0:00:39]} 24. Qc2 {[%emt 0:03:54]} Bg8 {[%emt 0:08:00]} 25. Bf5 {[%emt 0:04:03]} Qc7 {[%emt 0:00:55]} 26. Rad1 {[%emt 0:00:46]} Ne6 {[%emt 0:01:31]} 27. Qe4 {[%emt 0:00:51]} g5 {[%emt 0:02:28]} 28. Rxe6 {[%emt 0:01:00]} Bxe6 {[%emt 0:00:50]} 29. Bxe6 {[%emt 0:00:23]} Rxe6 {[%emt 0:00:31]} 30. Nf5 {[%emt 0:00:27]} Rg8 {[%emt 0:03:56]} 31. b4 {[%emt 0:00:24]} cxb4 {[%emt 0:04:17]} 32. cxb4 {[%emt 0:00:02]} b6 {[%emt 0:00:24]} 33. Qd5 {[%emt 0:00:54]} Rc6 {[%emt 0:02:26]} 34. b5 {[%emt 0:00:37]} Nb4 {[%emt 0:00:12]} 35. Qb3 {[%emt 0:00:36]} Rc4 {[%emt 0:00:11]} 36. axb6 {[%emt 0:00:30]} axb6 {[%emt 0:00:07]} 37. Rd6 {[%emt 0:00:29]} Qf7 {[%emt 0:03:31]} 38. Qd1 {[%emt 0:00:35]} Nc2 {[%emt 0:01:22]} 39. Bxb6 {[%emt 0:00:19]} Nd4 {[%emt 0:00:55]} 40. Nxd4 {[%emt 0:00:09]} exd4 {[%emt 0:00:18]} 41. Bxd4 {[%emt 0:00:06]} Rgc8 {[%emt 0:00:42]} 42. Rxf6 {[%emt 0:01:08]} Rc1 {[%emt 0:02:07]} 43. Rxf7+ {[%emt 0:01:30]} Kg8 44. Rg7+ {[%emt 0:00:30]} 1-0

[Event "75th Argentine Women-ch 2024"]
[Site "Buenos Aires"]
[Date "2024.11.29"]
[Round "8.5"]
[White "Nejanky, Maisa"]
[Black "Ramirez, Marysol"]
[Result "1-0"]
[ECO "C41"]
[WhiteElo "1928"]
[BlackElo "1824"]
[Annotator "RC"]
[PlyCount "149"]
[EventDate "2024.11.21"]
[EventType "swiss"]
[EventCountry "ARG"]
[SourceTitle "playchess.com"]
[Source "ChessBase"]
[SourceQuality "1"]
[TimeControl "5400+30"]

1. e4 {[%emt 0:00:03]} e5 {[%emt 0:00:11]} 2. Nf3 {[%emt 0:00:05]} d6 {[%emt 0:00:10]} 3. Nc3 {[%emt 0:00:40]} Be7 {[%emt 0:00:46]} 4. Bc4 {[%emt 0:00:36]} Nf6 {[%emt 0:00:12]} 5. d4 {[%emt 0:03:15]} exd4 {[%emt 0:01:04]} 6. Nxd4 {[%emt 0:01:19]} O-O {[%emt 0:01:01]} 7. f3 {[%emt 0:10:45]} c6 {[%emt 0:13:27]} 8. Nde2 {[%emt 0:07:56]} b5 {[%emt 0:07:30]} 9. Bb3 {[%emt 0:05:31]} Qb6 {[%emt 0:16:39]} 10. Qd3 {[%emt 0:17:12]} a5 {[%emt 0:14:11]} 11. Be3 {[%emt 0:07:17]} Qc7 {[%emt 0:01:08]} 12. a4 {[%emt 0:06:16]} b4 {[%emt 0:05:46]} 13. Nb1 {[%emt 0:02:01]} Rd8 {[%emt 0:06:18]} 14. c4 {[%emt 0:10:41]} Nbd7 {[%emt 0:05:25]} 15. Nd2 {[%emt 0:05:38]} Ne5 {[%emt 0:02:21]} 16. Qc2 {[%emt 0:00:34]} Ba6 {[%emt 0:01:48]} 17. f4 {[%emt 0:08:42]} Neg4 {[%emt 0:06:41]} 18. Bg1 {[%emt 0:00:48]} Nd7 {[%emt 0:05:54]} 19. h3 {[%emt 0:02:06]} Ngf6 {[%emt 0:00:28]} 20. Bf2 {[%emt 0:03:22]} Re8 {[%emt 0:02:26]} 21. O-O {[%emt 0:02:24]} Bf8 {[%emt 0:00:56]} 22. Ng3 {[%emt 0:00:45]} Rac8 {[%emt 0:04:39]} 23. Rfe1 {[%emt 0:00:40]} Bb7 {[%emt 0:00:28]} 24. Rad1 {[%emt 0:00:49]} Nb6 {[%emt 0:01:28]} 25. Bd4 {[%emt 0:00:40]} Nbd7 {[%emt 0:00:21]} 26. Nf3 {[%emt 0:01:43]} c5 {[%emt 0:00:44]} 27. Bf2 {[%emt 0:00:37]} Bc6 {[%emt 0:00:25]} 28. Qd3 {[%emt 0:00:47]} Nb6 {[%emt 0:00:22]} 29. Bc2 {[%emt 0:00:26]} g6 {[%emt 0:01:16]} 30. b3 {[%emt 0:00:07]} Nbd7 {[%emt 0:00:21]} 31. Ng5 {[%emt 0:00:40]} h6 {[%emt 0:00:32]} 32. Nxf7 {[%emt 0:00:55]} Ne5 {[%emt 0:00:58]} 33. fxe5 {[%emt 0:00:36]} dxe5 {[%emt 0:00:09]} 34. Nxh6+ {[%emt 0:00:47]} Bxh6 {[%emt 0:00:07]} 35. Bxc5 {[%emt 0:00:23]} Bf4 {[%emt 0:00:24]} 36. Bf2 {[%emt 0:00:16]} Bxg3 {[%emt 0:00:24]} 37. Qxg3 {[%emt 0:00:18]} Kg7 {[%emt 0:00:43]} 38. c5 {[%emt 0:00:42]} Rcd8 {[%emt 0:00:22]} 39. Qf3 {[%emt 0:01:01]} Qf7 {[%emt 0:01:01]} 40. Bh4 {[%emt 0:00:16]} Rxd1 {[%emt 0:00:26]} 41. Bxf6+ {[%emt 0:00:29]} Qxf6 {[%emt 0:00:20]} 42. Qxf6+ {[%emt 0:00:06]} Kxf6 {[%emt 0:00:05]} 43. Rxd1 {[%emt 0:00:03]} Kg5 {[%emt 0:00:24]} 44. Rd6 {[%emt 0:00:11]} Ba8 {[%emt 0:01:08]} 45. Ra6 {[%emt 0:00:22]} Kf4 {[%emt 0:00:42]} 46. Rxg6 {[%emt 0:01:30]} Ke3 {[%emt 0:00:17]} 47. h4 {[%emt 0:00:41]} Kd2 {[%emt 0:00:31]} 48. Bb1 {[%emt 0:00:18]} Kc1 {[%emt 0:00:06]} 49. Bd3 {[%emt 0:00:09]} Kb2 {[%emt 0:00:42]} 50. Bb5 {[%emt 0:00:39]} Rc8 {[%emt 0:00:51]} 51. Bc4 {[%emt 0:01:06]} Rxc5 {[%emt 0:00:47]} 52. h5 {[%emt 0:00:33]} Bxe4 {[%emt 0:00:18]} 53. Rg3 {[%emt 0:00:23]} Bc2 {[%emt 0:00:43]} 54. h6 {[%emt 0:00:10]} Rc7 {[%emt 0:00:08]} 55. Rg7 {[%emt 0:00:11]} Rc8 {[%emt 0:00:29]} 56. Bg8 {[%emt 0:01:12]} Rc6 {[%emt 0:00:49]} 57. h7 {[%emt 0:00:28]} Rh6 {[%emt 0:00:07]} 58. g4 {[%emt 0:00:11]} Bxb3 {[%emt 0:00:52]} 59. g5 {[%emt 0:00:45]} Rh4 {[%emt 0:00:24]} 60. Bxb3 {[%emt 0:00:11]} Kxb3 {[%emt 0:00:10]} 61. g6 {[%emt 0:00:11]} Ka2 {[%emt 0:00:49]} 62. Rg8 {[%emt 0:00:21]} b3 {[%emt 0:00:42]} 63. h8=Q {[%emt 0:00:26]} Rg4+ {[%emt 0:00:32]} 64. Kf2 {[%emt 0:00:17]} b2 {[%emt 0:00:13]} 65. Rb8 {[%emt 0:00:28]} Rb4 {[%emt 0:00:10]} 66. Rxb4 {[%emt 0:00:36]} axb4 {[%emt 0:00:05]} 67. Qh1 {[%emt 0:00:36]} b3 {[%emt 0:01:12]} 68. g7 {[%emt 0:00:05]} b1=Q {[%emt 0:00:20]} 69. Qxb1+ {[%emt 0:00:06]} Kxb1 {[%emt 0:00:05]} 70. g8=Q {[%emt 0:00:11]} b2 {[%emt 0:00:17]} 71. Qb3 {[%emt 0:00:36]} Kc1 {[%emt 0:01:34]} 72. Qc3+ {[%emt 0:00:27]} Kb1 {[%emt 0:00:24]} 73. a5 {[%emt 0:00:07]} Ka2 {[%emt 0:00:22]} 74. Qxb2+ {[%emt 0:00:07]} Kxb2 {[%emt 0:00:11]} 75. a6 {[%emt 0:00:04]} 1-0

[Event "75th Argentine Women-ch 2024"]
[Site "Buenos Aires"]
[Date "2024.11.28"]
[Round "8.6"]
[White "Gaite, Karen Nerina"]
[Black "Herrera, Solange"]
[Result "1-0"]
[ECO "A25"]
[WhiteElo "1997"]
[BlackElo "1880"]
[Annotator "RC"]
[PlyCount "43"]
[EventDate "2024.11.21"]
[EventType "swiss"]
[EventCountry "ARG"]
[SourceTitle "playchess.com"]
[Source "ChessBase"]
[SourceQuality "1"]
[TimeControl "5400+30"]

1. c4 {[%emt 0:00:09]} e5 {[%emt 0:00:41]} 2. Nc3 {[%emt 0:00:09]} Nc6 {[%emt 0:00:34]} 3. g3 {[%emt 0:00:07]} f5 {[%emt 0:00:06]} 4. Bg2 {[%emt 0:00:08]} Nf6 {[%emt 0:00:16]} 5. e3 {[%emt 0:00:33]} Bc5 {[%emt 0:03:53]} 6. Nge2 {[%emt 0:00:34]} O-O {[%emt 0:02:41]} 7. d4 {[%emt 0:02:06]} exd4 {[%emt 0:00:08]} 8. exd4 {[%emt 0:00:10]} Bb4 {[%emt 0:00:03]} 9. O-O {[%emt 0:00:27]} d6 {[%emt 0:00:28]} 10. Nd5 {[%emt 0:01:41]} Ba5 {[%emt 0:03:25]} 11. a3 {[%emt 0:01:20]} Ne7 {[%emt 0:01:12]} 12. Nxf6+ {[%emt 1:29:06]} Rxf6 {[%emt 0:00:37]} 13. b4 {[%emt 0:00:00]} Qf8 {[%emt 0:01:41]} 14. bxa5 {[%emt 0:00:00]} Ng6 {[%emt 1:21:45]} 15. Bg5 {[%emt 0:00:00]} f4 {[%emt 0:00:00]} 16. Bxf6 {[%emt 0:00:00]} Qxf6 {[%emt 0:00:00]} 17. Nxf4 {[%emt 0:00:00]} Nxf4 {[%emt 0:00:00]} 18. gxf4 {[%emt 0:03:00]} Qxf4 {[%emt 0:00:00]} 19. Qf3 {[%emt 0:00:00]} Qh6 {[%emt 0:02:30]} 20. Rae1 {[%emt 0:00:00]} Be6 {[%emt 0:00:00]} 21. Rxe6 {[%emt 0:00:00]} Qxe6 {[%emt 0:00:00]} 22. Qxb7 {[%emt 0:02:00]} 1-0

[Event "75th Argentine Women-ch 2024"]
[Site "Buenos Aires"]
[Date "2024.11.28"]
[Round "8.7"]
[White "Palomares, Lujan"]
[Black "Alvarez, Mia Morena"]
[Result "0-1"]
[ECO "B55"]
[WhiteElo "1633"]
[BlackElo "1653"]
[Annotator "NA RC"]
[PlyCount "56"]
[EventDate "2024.11.21"]
[EventType "swiss"]
[EventCountry "ARG"]
[SourceTitle "playchess.com"]
[Source "ChessBase"]
[SourceQuality "1"]
[TimeControl "5400+30"]

1. e4 {[%emt 0:13:41]} c5 {[%emt 0:00:12]} 2. Nf3 {[%emt 0:00:35]} d6 {[%emt 0:01:04]} 3. d4 {[%emt 0:01:31]} cxd4 {[%emt 0:00:23]} 4. Nxd4 {[%emt 0:00:43]} Nf6 {[%emt 0:00:27]} 5. Bd3 {[%emt 0:05:25]} e5 {[%emt 0:03:00]} 6. Nf3 {[%emt 0:02:03]} Be7 {[%emt 0:02:30]} 7. O-O {[%emt 0:00:59]} O-O {[%emt 0:02:57]} 8. Nc3 {[%emt 0:03:56]} h6 {[%emt 0:02:03]} 9. b3 {[%emt 0:04:59]} Bg4 {[%emt 0:03:08]} 10. h3 {[%emt 0:02:07]} Bh5 {[%emt 0:02:15]} 11. Bb2 {[%emt 0:01:24]} Nbd7 {[%emt 0:01:39]} 12. Re1 {[%emt 0:02:03]} Nc5 {[%emt 0:05:24]} 13. Bc4 {[%emt 0:01:08]} a6 {[%emt 0:02:41]} 14. a4 {[%emt 0:02:00]} Nh7 {[%emt 0:04:53]} 15. g4 {[%emt 0:15:09]} Bg6 {[%emt 0:00:45]} 16. Kh2 {[%emt 0:02:31]} h5 {[%emt 0:02:45]} 17. Nd2 {[%emt 0:01:07]} Bh4 {[%emt 0:04:37]} 18. Rf1 {[%emt 0:05:31]} Qg5 {[%emt 0:08:10]} 19. Nf3 {[%emt 0:02:11]} Qf4+ {[%emt 0:02:00]} 20. Kg2 {[%emt 0:01:22]} hxg4 {[%emt 0:02:19]} 21. Nxh4 {[%emt 0:02:53]} gxh3+ {[%emt 0:00:10]} 22. Kxh3 {[%emt 0:00:10]} Ng5+ {[%emt 0:00:09]} 23. Kg2 {[%emt 0:00:18]} Qxh4 {[%emt 0:00:23]} 24. Rh1 {[%emt 0:00:42]} Bxe4+ {[%emt 0:01:26]} 25. Nxe4 {[%emt 0:01:17]} Qxe4+ {[%emt 0:00:10]} 26. f3 {[%emt 0:00:16]} Qg6 {[%emt 0:00:10]} 27. Kf2 {[%emt 0:01:09]} e4 {[%emt 0:07:44]} 28. Bc1 {[%emt 0:01:43]} Nxf3 {[%emt 0:02:57]} 0-1